bitfinex-derivatives/quotes_BTCF0:USTF0_20250830
["timestamp","ask_amount","ask_price","bid_price","bid_amount"]
[1756549147116,0.90608489,108750.0,108740.0,0.95541]
[1756549147318,0.90608489,108750.0,108740.0,0.95517]
[1756549147516,0.90608489,108750.0,108740.0,1.30860956]
[1756549148316,0.90608489,108750.0,108740.0,0.95517]
[1756549148512,0.90608489,108750.0,108740.0,1.30860956]
[1756549149925,0.90608489,108750.0,108740.0,0.95517]
[1756549150117,0.90608489,108750.0,108740.0,1.30860956]
[1756549151317,0.55264533,108750.0,108740.0,1.30860956]
[1756549151517,0.90608489,108750.0,108740.0,1.30860956]
[1756549151730,0.90608489,108750.0,108740.0,0.95517]
[1756549152021,0.90608489,108750.0,108740.0,1.30860956]
[1756549152524,0.55264533,108750.0,108740.0,1.30860956]
[1756549152720,0.90608489,108750.0,108740.0,1.30860956]
[1756549154122,0.90608489,108750.0,108740.0,0.95517]
[1756549154424,0.90608489,108750.0,108740.0,1.30860956]
[1756549158824,0.55264533,108750.0,108740.0,1.30860956]
[1756549159026,0.90608489,108750.0,108740.0,1.30860956]
[1756549160029,0.90611322,108750.0,108740.0,1.30860956]
[1756549161029,0.90611322,108750.0,108740.0,0.95517]
[1756549161231,0.90611322,108750.0,108740.0,1.30860956]
[1756549162126,0.55267366,108750.0,108740.0,1.66204912]
[1756549162330,0.84208322,108750.0,108740.0,1.66204912]
[1756549163131,0.48864366,108750.0,108740.0,1.66204912]
[1756549163537,0.55267366,108750.0,108740.0,1.66204912]
[1756549164030,0.90611322,108750.0,108740.0,1.66204912]
[1756549164627,0.90611322,108750.0,108740.0,0.95517]
[1756549164929,0.90611322,108750.0,108740.0,1.66204912]
[1756549167833,0.55267366,108750.0,108740.0,1.66204912]
[1756549168535,0.55267366,108750.0,108740.0,0.95517]
[1756549168732,0.55267366,108750.0,108740.0,1.66204912]
[1756549169726,0.90611322,108750.0,108740.0,1.66204912]
[1756549170434,0.90611322,108750.0,108740.0,0.95517]
[1756549170635,0.90611322,108750.0,108740.0,1.66204912]
[1756549170838,0.8398956,108750.0,108740.0,0.81288912]
[1756549171033,0.8398956,108750.0,108740.0,1.66036912]
[1756549171235,0.8398956,108750.0,108740.0,1.66124912]
[1756549172036,0.8398956,108750.0,108740.0,0.81288912]
[1756549172235,0.8398956,108750.0,108740.0,0.95421]
[1756549172537,0.55267366,108750.0,108740.0,1.30764956]
[1756549172842,0.90611322,108750.0,108740.0,1.30768956]
[1756549173733,0.90611322,108750.0,108740.0,1.26982307]
[1756549174037,0.90611322,108750.0,108740.0,1.21362307]
[1756549176041,0.55267366,108750.0,108740.0,1.21362307]
[1756549176340,0.90611322,108750.0,108740.0,1.21362307]
[1756549177143,0.55267366,108750.0,108740.0,1.21362307]
[1756549177535,0.90611322,108750.0,108740.0,1.56706263]
[1756549179140,0.55267366,108750.0,108740.0,1.56706263]
[1756549179548,0.90611322,108750.0,108740.0,1.56706263]
[1756549181147,0.90611322,108750.0,108740.0,1.60557263]
[1756549181757,0.90611322,108750.0,108740.0,0.89869351]
[1756549181956,0.90611322,108750.0,108740.0,1.60557263]
[1756549182160,0.90611322,108750.0,108740.0,1.60597263]
[1756549182353,0.90611322,108750.0,108740.0,1.25253307]
[1756549183656,0.90611322,108750.0,108740.0,1.60597263]
[1756549185452,0.90611322,108750.0,108740.0,0.89909351]
[1756549185657,0.90611322,108750.0,108740.0,1.60597263]
[1756549187663,0.55267366,108750.0,108740.0,1.60597263]
[1756549187960,0.90611322,108750.0,108740.0,1.60597263]
[1756549189056,0.51109366,108750.0,108740.0,1.60597263]
[1756549189356,0.15029366,108750.0,108740.0,1.60597263]
[1756549189755,0.50373322,108750.0,108740.0,1.60597263]
[1756549192564,0.15029366,108750.0,108740.0,1.60597263]
[1756549192763,0.08626366,108750.0,108740.0,1.60597263]
[1756549192958,0.02004604,108750.0,108740.0,1.96677263]
[1756549194666,0.02004604,108750.0,108740.0,1.60597263]
[1756549197960,0.08256604,108750.0,108740.0,1.60597263]
[1756549198665,0.02004604,108750.0,108740.0,1.60597263]
[1756549201164,0.06188604,108750.0,108740.0,0.05045351]
[1756549201466,0.06188604,108750.0,108740.0,1.60449263]
[1756549201669,0.12193604,108750.0,108740.0,1.60449263]
[1756549202468,0.12193604,108750.0,108740.0,0.75733263]
[1756549202658,0.12193604,108750.0,108740.0,1.60485263]
[1756549203868,0.4753756,108750.0,108740.0,1.60469263]
[1756549205164,0.12193604,108750.0,108740.0,1.60469263]
[1756549205566,0.4753756,108750.0,108740.0,1.60469263]
[1756549207574,0.54159322,108750.0,108740.0,1.60469263]
[1756549207975,0.54159322,108750.0,108740.0,1.60405263]
[1756549208966,0.54159322,108750.0,108740.0,0.05045351]
[1756549209169,0.54159322,108750.0,108740.0,0.00733351]
[1756549209170,0.88584001,108750.0,108740.0,0.00733351]
[1756549209473,0.88584001,108750.0,108740.0,1.20725307]
[1756549210478,0.88584001,108750.0,108740.0,1.11025307]
[1756549210876,0.88584001,108750.0,108740.0,1.08425307]
[1756549211177,0.88584001,108750.0,108740.0,1.10577307]
[1756549215183,0.88584001,108750.0,108740.0,0.78676351]
[1756549215383,0.88584001,108750.0,108740.0,1.14020307]
[1756549215885,0.8361756,108750.0,108740.0,1.14020307]
[1756549217081,0.8361756,108750.0,108740.0,1.25514956]
[1756549218787,0.8361756,108750.0,108740.0,0.40938956]
[1756549219087,0.8361756,108750.0,108740.0,1.14919956]
[1756549219281,0.81612956,108750.0,108740.0,1.14919956]
[1756549219481,0.83644568,108750.0,108740.0,0.79576]
[1756549219680,0.83644568,108750.0,108740.0,1.14919956]
[1756549219883,0.83644568,108750.0,108740.0,0.79576]
[1756549220280,0.83644568,108750.0,108740.0,1.14919956]
[1756549222689,0.48300612,108750.0,108740.0,1.50263912]
[1756549222894,0.83644568,108750.0,108740.0,1.50263912]
[1756549223289,0.83644568,108750.0,108740.0,1.14919956]
[1756549223492,0.83644568,108750.0,108740.0,0.79576]
[1756549223691,0.83644568,108750.0,108740.0,1.14919956]
[1756549224584,0.9026633,108750.0,108740.0,1.14919956]
[1756549224786,0.9026633,108750.0,108740.0,0.79576]
[1756549224994,0.9026633,108750.0,108740.0,1.50263912]
[1756549225791,0.83644568,108750.0,108740.0,1.50263912]
[1756549226191,0.48300612,108750.0,108740.0,1.50263912]
[1756549226493,0.83644568,108750.0,108740.0,1.50263912]
[1756549227394,0.83644568,108750.0,108740.0,0.79576]
[1756549227793,0.90266883,108750.0,108740.0,1.14919956]
[1756549228392,0.83644568,108750.0,108740.0,1.14919956]
[1756549228589,0.47564568,108750.0,108740.0,0.35343956]
[1756549228790,0.83644568,108750.0,108740.0,1.19855956]
[1756549228990,0.90266954,108750.0,108740.0,1.19855956]
[1756549229294,0.54922998,108750.0,108740.0,1.19855956]
[1756549229494,0.90266954,108750.0,108740.0,1.19855956]
[1756549230395,0.90266954,108750.0,108740.0,0.35343956]
[1756549230582,0.90266954,108750.0,108740.0,1.19875956]
[1756549231598,0.10175,108740.0,108730.0,0.3608]
[1756549231790,0.12206612,108740.0,108730.0,1.55931956]
[1756549232290,0.18828998,108740.0,108730.0,1.55931956]
[1756549232692,0.12712998,108740.0,108730.0,1.91275912]
[1756549235194,0.06090612,108740.0,108730.0,1.91275912]
[1756549235992,0.09026482,108740.0,108730.0,1.91275912]
[1756549236193,0.11058094,108740.0,108730.0,1.91275912]
[1756549238189,0.11058094,108740.0,108730.0,1.20588]
[1756549238394,0.10175,108730.0,108720.0,0.07537123]
[1756549238695,0.5251805,108730.0,108720.0,1.56322912]
[1756549238999,0.17174094,108730.0,108720.0,1.56322912]
[1756549240900,0.17174094,108730.0,108720.0,1.63694506]
[1756549241502,0.17174094,108730.0,108720.0,0.78518506]
[1756549241701,0.17174094,108730.0,108720.0,1.63850506]
[1756549242202,0.11058094,108730.0,108720.0,1.63850506]
[1756549242903,0.11058094,108730.0,108720.0,0.78518506]
[1756549243099,0.17174094,108730.0,108720.0,1.63854506]
[1756549243503,0.17174094,108730.0,108720.0,1.99934506]
[1756549247809,0.17174094,108730.0,108720.0,1.63854506]
[1756549249113,0.17174094,108730.0,108720.0,1.99934506]
[1756549249613,0.17174094,108730.0,108720.0,1.99475506]
[1756549250404,0.17174094,108730.0,108720.0,1.99934506]
[1756549255214,0.12206612,108730.0,108720.0,1.99934506]
[1756549256615,0.12206612,108730.0,108720.0,1.63854506]
[1756549256916,0.12206612,108730.0,108720.0,0.78518506]
[1756549257120,0.12206612,108730.0,108720.0,1.63822506]
[1756549257316,0.70093295,108740.0,108730.0,0.01208]
[1756549257618,0.74152295,108740.0,108730.0,0.42609956]
[1756549258218,0.74152295,108740.0,108730.0,1.27901956]
[1756549258417,0.74152295,108740.0,108730.0,0.42609956]
[1756549258717,0.74152295,108740.0,108730.0,1.27885956]
[1756549259415,0.80268295,108740.0,108730.0,1.27885956]
[1756549259617,0.80268295,108740.0,108730.0,1.27877956]
[1756549260517,0.80268295,108740.0,108730.0,0.42609956]
[1756549260716,0.75300813,108740.0,108730.0,1.27873956]
[1756549261217,0.75300813,108740.0,108730.0,1.27869956]
[1756549261515,0.75300813,108740.0,108730.0,1.27861956]
[1756549261916,0.86564156,108740.0,108730.0,0.42609956]
[1756549262115,0.86564156,108740.0,108730.0,1.27861956]
[1756549263220,0.86564156,108740.0,108730.0,0.92518]
[1756549263518,0.512202,108740.0,108730.0,1.27861956]
[1756549263719,0.86564156,108740.0,108730.0,1.27861956]
[1756549265124,0.88221342,108740.0,108730.0,1.27861956]
[1756549267224,0.88221342,108740.0,108730.0,0.92518]
[1756549267425,0.88221342,108740.0,108730.0,1.27861956]
[1756549268122,0.81598956,108740.0,108730.0,1.27861956]
[1756549268323,0.46255,108740.0,108730.0,1.27861956]
[1756549269224,0.46255,108740.0,108730.0,1.27857956]
[1756549269425,0.4838371,108740.0,108730.0,1.27857956]
[1756549269925,0.4838371,108740.0,108730.0,1.28316956]
[1756549273629,0.4838371,108740.0,108730.0,0.92973]
[1756549273827,0.4838371,108740.0,108730.0,1.28316956]
[1756549274726,0.550091,108740.0,108730.0,1.28316956]
[1756549275527,0.488931,108740.0,108730.0,1.28316956]
[1756549276025,0.552151,108740.0,108730.0,1.28316956]
[1756549278326,0.552151,108740.0,108730.0,1.30196896]
[1756549279720,0.90559056,108740.0,108730.0,1.30196896]
[1756549280226,0.552151,108740.0,108730.0,1.30196896]
[1756549280526,0.90559056,108740.0,108730.0,1.30196896]
[1756549280928,0.552151,108740.0,108730.0,1.30196896]
[1756549281123,0.90559056,108740.0,108730.0,1.30196896]
[1756549281325,0.552151,108740.0,108730.0,1.30196896]
[1756549281525,0.90559056,108740.0,108730.0,0.44948896]
[1756549281725,0.90559056,108740.0,108730.0,1.29988896]
[1756549283031,0.552151,108740.0,108730.0,1.29988896]
[1756549283229,0.90559056,108740.0,108730.0,1.29988896]
[1756549283624,0.552151,108740.0,108730.0,0.44948896]
[1756549283819,0.90559056,108740.0,108730.0,1.29992896]
[1756549284019,0.90559056,108740.0,108730.0,0.44948896]
[1756549284229,0.90559056,108740.0,108730.0,1.29964896]
[1756549285730,0.552151,108740.0,108730.0,1.29964896]
[1756549286332,0.90559056,108740.0,108730.0,1.29964896]
[1756549286830,0.552151,108740.0,108730.0,1.29964896]
[1756549290635,0.191351,108740.0,108730.0,1.29964896]
[1756549290836,0.552151,108740.0,108730.0,1.29964896]
[1756549291036,0.552151,108740.0,108730.0,0.9462094]
[1756549291238,0.552151,108740.0,108730.0,1.29964896]
[1756549292737,0.90559056,108740.0,108730.0,1.29964896]
[1756549293035,0.552151,108740.0,108730.0,1.29964896]
[1756549293230,0.90559056,108740.0,108730.0,1.29964896]
[1756549294131,0.552151,108740.0,108730.0,1.29964896]
[1756549298345,0.55215259,108740.0,108730.0,1.29964896]
[1756549298936,0.55215259,108740.0,108730.0,1.29756896]
[1756549301046,0.55215259,108740.0,108730.0,0.9441294]
[1756549301238,0.90559215,108740.0,108730.0,1.29756896]
[1756549303146,0.55215259,108740.0,108730.0,1.29756896]
[1756549303446,0.90559215,108740.0,108730.0,0.9441294]
[1756549303648,0.90559215,108740.0,108730.0,1.29756896]
[1756549304848,0.90559215,108740.0,108730.0,0.0960494]
[1756549305049,0.90559215,108740.0,108730.0,1.29692896]
[1756549307756,0.54479215,108740.0,108730.0,1.29692896]
[1756549307956,0.90559215,108740.0,108730.0,1.29692896]
[1756549309661,0.90559215,108740.0,108730.0,1.27812956]
[1756549311063,0.55215259,108740.0,108730.0,1.27812956]
[1756549311364,0.90559215,108740.0,108730.0,1.27812956]
[1756549312858,0.55215259,108740.0,108730.0,1.27812956]
[1756549314055,0.48589869,108740.0,108730.0,1.27812956]
[1756549315166,0.55215259,108740.0,108730.0,1.27812956]
[1756549315965,0.90559215,108740.0,108730.0,1.27812956]
[1756549316570,0.55215259,108740.0,108730.0,1.27812956]
[1756549320971,0.48893259,108740.0,108730.0,1.27812956]
[1756549321376,0.54848259,108740.0,108730.0,1.27812956]
[1756549322969,0.48222869,108740.0,108730.0,1.27812956]
[1756549325176,0.54848766,108740.0,108730.0,1.27812956]
[1756549325776,0.48893766,108740.0,108730.0,1.63156912]
[1756549327982,0.54848766,108740.0,108730.0,1.63156912]
[1756549328480,0.48893766,108740.0,108730.0,1.63156912]
[1756549329281,0.48893766,108740.0,108730.0,1.63028912]
[1756549329481,0.18768766,108740.0,108730.0,1.63028912]
[1756549331583,0.18768766,108740.0,108730.0,0.78412912]
[1756549331782,0.18768766,108740.0,108730.0,1.63028912]
[1756549333982,0.08754766,108740.0,108730.0,1.63028912]
[1756549334880,0.08754766,108740.0,108730.0,1.03412912]
[1756549335080,0.02128869,108740.0,108730.0,2.24104912]
[1756549337475,0.06625897,108750.0,108740.0,0.04321]
[1756549337679,0.06625897,108750.0,108740.0,0.78794912]
[1756549338685,0.06625897,108750.0,108740.0,0.79253912]
[1756549339183,0.54637838,108760.0,108750.0,0.04321]
[1756549339379,0.54637838,108760.0,108750.0,1.28058956]
[1756549340483,0.48682838,108760.0,108750.0,1.63402912]
[1756549340886,0.42056941,108760.0,108750.0,1.63402912]
[1756549343184,0.48011941,108760.0,108750.0,1.63402912]
[1756549343586,0.42056941,108760.0,108750.0,1.63402912]
[1756549344887,0.48011941,108760.0,108750.0,1.63390912]
[1756549345093,0.48011941,108760.0,108750.0,1.28046956]
[1756549347891,0.48011941,108760.0,108750.0,0.92703]
[1756549348093,0.48011941,108760.0,108750.0,1.28046956]
[1756549348395,0.54637838,108760.0,108750.0,1.28046956]
[1756549348900,0.54637838,108760.0,108750.0,0.43450956]
[1756549349090,0.54637838,108760.0,108750.0,1.28038956]
[1756549349397,0.56752588,108760.0,108750.0,1.28038956]
[1756549351096,0.50126691,108760.0,108750.0,1.28038956]
[1756549353598,0.1193275,108760.0,108750.0,0.43450956]
[1756549353798,0.1193271,108760.0,108750.0,1.63374912]
[1756549354004,0.0597771,108760.0,108750.0,1.63374912]
[1756549354592,0.08749993,108760.0,108750.0,1.63374912]
[1756549355598,0.14414993,108760.0,108750.0,1.63374912]
[1756549355799,0.2104089,108760.0,108750.0,1.63374912]
[1756549356000,0.14414993,108760.0,108750.0,1.63374912]
[1756549357899,0.1537589,108760.0,108750.0,1.63374912]
[1756549360098,0.14414993,108760.0,108750.0,0.78794912]
[1756549360298,0.14414993,108760.0,108750.0,1.63366912]
[1756549360494,0.14414993,108760.0,108750.0,0.92679]
[1756549360695,0.14414993,108760.0,108750.0,1.28022956]
[1756549362104,0.14414993,108760.0,108750.0,1.28481956]
[1756549364406,0.14414993,108760.0,108750.0,0.93138]
[1756549364706,0.14414993,108760.0,108750.0,1.28481956]
[1756549365004,0.14414993,108760.0,108750.0,1.64561956]
[1756549365302,0.2104089,108760.0,108750.0,1.64561956]
[1756549366000,0.14414993,108760.0,108750.0,1.64561956]
[1756549367707,0.21037978,108760.0,108750.0,1.28481956]
[1756549367902,0.14414993,108760.0,108750.0,1.28481956]
[1756549370706,0.14414993,108760.0,108750.0,0.43909956]
[1756549370906,0.14414993,108760.0,108750.0,1.28465956]
[1756549372410,0.22694378,108760.0,108750.0,1.23497039]
[1756549374307,0.22694378,108760.0,108750.0,0.38941039]
[1756549374508,0.22694378,108760.0,108750.0,1.23489039]
[1756549375210,0.21039729,108760.0,108750.0,1.23489039]
[1756549377406,0.21039729,108760.0,108750.0,0.88145083]
[1756549377613,0.21039729,108760.0,108750.0,1.23489039]
[1756549380218,0.15374729,108760.0,108750.0,1.23489039]
[1756549380409,0.15374729,108760.0,108750.0,1.58832995]
[1756549381117,0.15374729,108760.0,108750.0,1.94912995]
[1756549384923,0.11511729,108760.0,108750.0,1.94912995]
[1756549386723,0.11511729,108760.0,108750.0,1.94892995]
[1756549390929,0.11511729,108760.0,108750.0,1.94880995]
[1756549392241,0.04886993,108760.0,108750.0,1.94880995]
[1756549393838,0.46046692,108770.0,108760.0,0.08945]
[1756549394138,0.10702736,108770.0,108760.0,0.79632912]
[1756549394337,0.46046692,108770.0,108760.0,0.79632912]
[1756549394533,0.46046692,108770.0,108760.0,0.08945]
[1756549394941,0.46046692,108770.0,108760.0,0.80091912]
[1756549395639,0.51829692,108770.0,108760.0,0.80091912]
[1756549397346,0.45204956,108770.0,108760.0,0.80091912]
[1756549397842,0.49817825,108770.0,108760.0,0.80091912]
[1756549399744,0.14473869,108770.0,108760.0,0.80091912]
[1756549399940,0.14473869,108770.0,108760.0,0.09404]
[1756549400147,0.49817825,108770.0,108760.0,1.64587912]
[1756549401647,0.14473869,108770.0,108760.0,1.64587912]
[1756549401841,0.49817825,108770.0,108760.0,1.64587912]
[1756549403542,0.14473869,108770.0,108760.0,1.64587912]
[1756549403747,0.210979,108770.0,108760.0,1.64587912]
[1756549403941,0.210979,108770.0,108760.0,0.939]
[1756549404138,0.210979,108770.0,108760.0,1.64587912]
[1756549405249,0.14473869,108770.0,108760.0,1.64587912]
[1756549405748,0.16552737,108770.0,108760.0,1.64587912]
[1756549406447,0.16552737,108770.0,108760.0,0.939]
[1756549406649,0.16552737,108770.0,108760.0,0.93892]
[1756549406849,0.16552737,108770.0,108760.0,1.59611127]
[1756549407049,0.24832122,108770.0,108760.0,1.59611127]
[1756549407239,0.51896693,108770.0,108760.0,1.59611127]
[1756549407443,0.60176078,108770.0,108760.0,1.52157949]
[1756549407643,0.51896693,108770.0,108760.0,1.52157949]
[1756549408250,0.16552737,108770.0,108760.0,1.52157949]
[1756549409449,0.16552737,108770.0,108760.0,0.70687912]
[1756549409651,0.16552737,108770.0,108760.0,1.55167912]
[1756549410051,0.24832918,108770.0,108760.0,1.55167912]
[1756549412053,0.16552737,108770.0,108760.0,1.55167912]
[1756549415256,0.23176873,108770.0,108760.0,1.55167912]
[1756549420558,0.23176873,108770.0,108760.0,0.8448]
[1756549420760,0.23176873,108770.0,108760.0,1.55167912]
[1756549421165,0.58520829,108770.0,108760.0,1.55167912]
[1756549424253,0.58520829,108770.0,108760.0,0.70687912]
[1756549424452,0.58520829,108770.0,108760.0,1.55143912]
[1756549425258,0.24832918,108770.0,108760.0,1.55143912]
[1756549425458,0.16552737,108770.0,108760.0,1.55143912]
[1756549425963,0.16552737,108770.0,108760.0,1.55139912]
[1756549426363,0.51896693,108770.0,108760.0,1.55139912]
[1756549426663,0.51896693,108770.0,108760.0,0.70687912]
[1756549426860,0.51896693,108770.0,108760.0,1.55135912]
[1756549429162,0.60176874,108770.0,108760.0,1.55135912]
[1756549430160,0.60176874,108770.0,108760.0,0.70687912]
[1756549430361,0.60176874,108770.0,108760.0,1.55131912]
[1756549430565,0.60176874,108770.0,108760.0,1.55127912]
[1756549431563,0.24832918,108770.0,108760.0,1.55127912]
[1756549431765,0.60176874,108770.0,108760.0,1.55127912]
[1756549433470,0.24832918,108770.0,108750.0,0.37945971]
[1756549433762,0.10536457,108760.0,108750.0,0.37945971]
[1756549433965,0.12615325,108760.0,108750.0,1.22377971]
[1756549434369,0.08703325,108760.0,108750.0,1.22377971]
[1756549434668,0.08703325,108760.0,108750.0,1.93065883]
[1756549442774,0.08703325,108760.0,108750.0,1.93049883]
[1756549447873,0.08703325,108760.0,108750.0,1.93037883]
[1756549448273,0.08619211,108760.0,108750.0,1.93037883]
[1756549448576,0.08619211,108760.0,108750.0,1.56957883]
[1756549448776,0.08619211,108760.0,108750.0,1.93037883]
[1756549453978,0.14632211,108760.0,108750.0,1.93037883]
[1756549454786,0.35850543,108770.0,108750.0,1.93037883]
[1756549454978,0.39662543,108770.0,108760.0,0.75752912]
[1756549455484,0.47942724,108770.0,108760.0,0.89453]
[1756549455672,0.47942724,108770.0,108760.0,1.60140912]
[1756549456384,0.47942724,108770.0,108760.0,1.24796956]
[1756549456782,0.53955724,108770.0,108760.0,1.24796956]
[1756549457282,0.53955724,108770.0,108760.0,1.60140912]
[1756549458475,0.53955724,108770.0,108760.0,0.75752912]
[1756549458683,0.73678768,108770.0,108750.0,0.8438]
[1756549458883,0.45168956,108760.0,108750.0,0.8438]
[1756549459483,0.18105181,108760.0,108750.0,0.8438]
[1756549460089,0.53449137,108760.0,108750.0,1.19723956]
[1756549460283,0.18105181,108760.0,108750.0,1.19723956]
[1756549460988,0.53449137,108760.0,108750.0,1.19723956]
[1756549461190,0.45168956,108760.0,108750.0,1.19723956]
[1756549462291,0.09825,108760.0,108750.0,1.19723956]
[1756549465297,0.16448849,108760.0,108750.0,1.19723956]
[1756549465694,0.51792805,108760.0,108750.0,1.19723956]
[1756549466796,0.53783728,108760.0,108750.0,1.19723956]
[1756549468804,0.18439772,108760.0,108750.0,1.19723956]
[1756549469003,0.53783728,108760.0,108750.0,1.19723956]
[1756549469485,0.47770728,108760.0,108750.0,1.19723956]
[1756549469687,0.08614772,108760.0,108750.0,1.19723956]
[1756549470198,0.08614772,108760.0,108750.0,1.55067912]
[1756549470994,0.08614772,108760.0,108750.0,1.19723956]
[1756549472498,0.01990923,108760.0,108750.0,1.19723956]
[1756549472699,0.18771772,108760.0,108740.0,0.37919194]
[1756549472903,0.18771772,108760.0,108750.0,1.19691956]
[1756549474704,0.18771772,108760.0,108750.0,0.84348]
[1756549474897,0.18771772,108760.0,108750.0,1.19691956]
[1756549476001,0.12147923,108760.0,108750.0,1.19691956]
[1756549477105,0.18771772,108760.0,108750.0,1.19691956]
[1756549481512,0.12550772,108760.0,108750.0,1.19691956]
[1756549484310,0.12550772,108760.0,108750.0,1.19663956]
[1756549485710,0.18771772,108760.0,108750.0,1.19663956]
[1756549489914,0.18771772,108760.0,108750.0,1.55743956]
[1756549490902,0.12147923,108760.0,108750.0,1.55743956]
[1756549491111,0.12147923,108760.0,108750.0,1.204]
[1756549491310,0.12147923,108760.0,108750.0,0.71423956]
[1756549491813,0.12147923,108760.0,108750.0,1.55723956]
[1756549492209,0.12147923,108760.0,108750.0,1.19643956]
[1756549492410,0.54851772,108760.0,108750.0,1.19643956]
[1756549492611,0.48227923,108760.0,108750.0,1.19643956]
[1756549492810,0.10157,108750.0,108740.0,1.10672985]
[1756549493015,0.48227923,108750.0,108740.0,1.46016941]
[1756549493718,0.47491879,108750.0,108740.0,1.46016941]
[1756549495317,0.54115728,108750.0,108740.0,1.46016941]
[1756549496613,0.54115728,108750.0,108740.0,0.843]
[1756549496818,0.54115728,108750.0,108740.0,1.54983912]
[1756549503521,0.54115728,108750.0,108740.0,1.5685964]
[1756549505324,0.52455758,108750.0,108740.0,1.5685964]
[1756549505624,0.17111802,108750.0,108740.0,1.5685964]
[1756549505825,0.47491879,108750.0,108740.0,0.86171728]
[1756549506027,0.47491879,108750.0,108740.0,1.5685964]
[1756549513126,0.47491879,108750.0,108740.0,0.01875728]
[1756549513330,0.83571879,108750.0,108740.0,0.86131728]
[1756549513629,0.83571879,108750.0,108740.0,0.85861215]
[1756549513830,0.83571879,108750.0,108740.0,1.21205171]
[1756549514625,0.83571879,108750.0,108740.0,0.36949171]
[1756549514831,0.83571879,108750.0,108740.0,1.21201171]
[1756549515429,0.90195728,108750.0,108740.0,1.21201171]
[1756549516618,0.54115728,108750.0,108740.0,1.21201171]
[1756549516829,0.90195728,108750.0,108740.0,1.21201171]
[1756549524435,0.90195728,108750.0,108740.0,0.01605215]
[1756549524633,0.90195728,108750.0,108740.0,1.21181171]
[1756549525134,0.90195728,108750.0,108740.0,0.74536782]
[1756549525331,0.54851772,108750.0,108740.0,0.76401302]
[1756549525635,0.90195728,108750.0,108740.0,0.37208476]
[1756549526235,0.90195728,108750.0,108740.0,0.0186452]
[1756549526430,0.90195728,108750.0,108740.0,0.37208476]
[1756549526635,0.92260183,108750.0,108740.0,0.37170931]
[1756549528129,0.78463388,108750.0,108740.0,0.47649931]
[1756549529130,0.78463388,108750.0,108740.0,0.31452862]
[1756549529336,0.77412411,108750.0,108740.0,0.37852862]
[1756549529739,0.77412411,108750.0,108740.0,0.12305975]
[1756549529929,0.77412411,108750.0,108740.0,0.47649931]
[1756549530129,0.83223411,108750.0,108740.0,0.47649931]
[1756549530335,0.11799455,108750.0,108740.0,0.82993887]
[1756549530536,0.41332411,108750.0,108740.0,0.82993887]
[1756549531038,0.47714411,108750.0,108740.0,1.67209887]
[1756549531337,0.47714411,108750.0,108740.0,1.31865931]
[1756549532237,0.47714411,108750.0,108740.0,0.47649931]
[1756549532537,0.47714411,108750.0,108740.0,1.31865931]
[1756549533339,0.41332411,108750.0,108740.0,1.67209887]
[1756549533638,0.05988455,108750.0,108740.0,1.67205887]
[1756549533838,0.41332411,108750.0,108740.0,1.67205887]
[1756549534742,0.41332411,108750.0,108740.0,0.82993887]
[1756549534940,0.47714411,108750.0,108740.0,1.67201887]
[1756549535341,0.47714411,108750.0,108740.0,1.31857931]
[1756549535843,0.47714411,108750.0,108740.0,0.47649931]
[1756549536044,0.47714411,108750.0,108740.0,1.31853931]
[1756549537240,0.47714411,108750.0,108740.0,0.47649931]
[1756549537737,0.47714411,108750.0,108740.0,1.31853931]
[1756549537942,0.54335137,108750.0,108740.0,1.31853931]
[1756549538142,0.54335137,108750.0,108740.0,0.47649931]
[1756549538439,0.54335137,108750.0,108740.0,1.31853931]
[1756549538737,0.54335137,108750.0,108740.0,1.31849931]
[1756549540146,0.54335137,108750.0,108740.0,0.96505975]
[1756549540350,0.54335137,108750.0,108740.0,1.31849931]
[1756549543747,0.47714411,108750.0,108740.0,1.31849931]
[1756549545250,0.54335137,108750.0,108740.0,1.31849931]
[1756549545749,0.54335137,108750.0,108740.0,0.47649931]
[1756549545944,0.83794411,108750.0,108740.0,1.31837931]
[1756549546150,0.83794411,108750.0,108740.0,1.31833931]
[1756549546546,0.83794411,108750.0,108740.0,0.06925975]
[1756549546746,0.83794411,108750.0,108740.0,0.35869931]
[1756549547547,0.83794411,108750.0,108740.0,0.40158931]
[1756549548156,0.83794411,108750.0,108740.0,0.39588931]
[1756549548348,0.83794411,108750.0,108740.0,0.43668931]
[1756549550657,0.83794411,108750.0,108740.0,0.08369]
[1756549551056,0.83794411,108750.0,108740.0,0.07053669]
[1756549552455,0.83794411,108750.0,108740.0,0.05933669]
[1756549553262,0.83794411,108750.0,108740.0,0.03013669]
[1756549555160,0.83794411,108750.0,108740.0,0.38357625]
[1756549555362,0.90418578,108750.0,108740.0,0.38357625]
[1756549555763,0.90418578,108750.0,108740.0,0.03013669]
[1756549555954,0.90418578,108750.0,108740.0,0.38357625]
[1756549557766,0.92391068,108750.0,108740.0,0.38357625]
[1756549558574,0.92391068,108750.0,108740.0,0.38057625]
[1756549560376,0.06382,108740.0,108730.0,1.16734984]
[1756549560576,0.52840399,108740.0,108730.0,1.15381956]
[1756549561274,0.52840399,108740.0,108730.0,1.51461956]
[1756549563380,0.47872446,108740.0,108730.0,1.51461956]
[1756549564679,0.52840357,108740.0,108730.0,1.51461956]
[1756549568786,0.47872446,108740.0,108730.0,1.51461956]
[1756549569684,0.47872446,108740.0,108730.0,1.15381956]
[1756549569879,0.47872446,108740.0,108730.0,1.51461956]
[1756549571784,0.0614649,108740.0,108730.0,1.51461956]
[1756549572584,0.1211749,108740.0,108730.0,1.51461956]
[1756549572785,0.47461446,108740.0,108730.0,1.51461956]
[1756549573383,0.41490446,108740.0,108730.0,1.51461956]
[1756549574783,0.0614649,108740.0,108730.0,1.51461956]
[1756549575188,0.0614649,108740.0,108730.0,1.16118]
[1756549575486,0.0614649,108740.0,108730.0,1.51461956]
[1756549575887,0.0614649,108740.0,108730.0,1.16118]
[1756549576086,0.0614649,108740.0,108730.0,1.51461956]
[1756549576586,0.48114613,108740.0,108730.0,1.51461956]
[1756549577284,0.54085613,108740.0,108730.0,1.51461956]
[1756549577988,0.47461446,108740.0,108730.0,1.51461956]
[1756549578291,0.54085613,108740.0,108730.0,1.51461956]
[1756549579695,0.54085613,108740.0,108730.0,1.16118]
[1756549579896,0.54085613,108740.0,108730.0,1.51461956]
[1756549583700,0.54085613,108740.0,108730.0,1.15381956]
[1756549583998,0.54085613,108740.0,108730.0,1.51461956]
[1756549584701,0.54085613,108740.0,108730.0,1.16118]
[1756549584904,0.54085613,108740.0,108730.0,1.51461956]
[1756549586301,0.18741657,108740.0,108730.0,1.51461956]
[1756549586497,0.54085613,108740.0,108730.0,1.51461956]
[1756549586802,0.48114613,108740.0,108730.0,1.51461956]
[1756549587103,0.47461446,108740.0,108730.0,1.51461956]
[1756549588596,0.0614649,108740.0,108730.0,1.51461956]
[1756549588902,0.47461446,108740.0,108730.0,1.51461956]
[1756549592605,0.1211749,108740.0,108730.0,1.51461956]
[1756549592804,0.47461446,108740.0,108730.0,1.51461956]
[1756549595503,0.1211749,108740.0,108730.0,1.51461956]
[1756549595700,0.47461446,108740.0,108730.0,1.16118]
[1756549595999,0.47461446,108740.0,108730.0,1.51461956]